lending/lending_fUSD_20250808
["ID","MTS","AMOUNT","RATE_DAILY","PERIOD"]
[377986772,1754650244354,-150.0,0.00018781,2]
[377986773,1754650244364,-150.0,0.00018784,2]
[377986774,1754650244376,-150.0,0.00018784,2]
[377986775,1754650244386,-150.0,0.00018793,2]
[377986776,1754650244396,-577.63190117,0.00018796,2]
[377986777,1754650244406,-150.0,0.00018797,2]
[377986778,1754650244415,-150.0,0.00018805,2]
[377986779,1754650244425,-150.0,0.00018814,2]
[377986780,1754650244435,-150.0,0.00018817,2]
[377986781,1754650244445,-577.63190117,0.00018822,2]
[377986782,1754650244455,-1039.06634649,0.00018823,2]
[377986783,1754650244466,-150.0,0.00018827,2]
[377986784,1754650244476,-150.0,0.00018832,2]
[377986785,1754650244487,-150.0,0.00018848,2]
[377986786,1754650244497,-577.63190117,0.00018848,2]
[377986787,1754650244508,-1039.06634649,0.00018848,2]
[377986788,1754650244791,-150.0,0.00018852,2]
[377986789,1754650244816,-150.0,0.00018855,2]
[377986790,1754650244826,-150.0,0.00018856,2]
[377986791,1754650244836,-150.0,0.0001887,2]
[377986792,1754650244845,-150.0,0.00018872,2]
[377986793,1754650244854,-150.0,0.00018872,2]
[377986794,1754650244864,-150.0,0.00018873,2]
[377986795,1754650244874,-150.0,0.00018874,2]
[377986796,1754650244884,-577.63190117,0.00018874,2]
[377986797,1754650244894,-1039.06634649,0.00018874,2]
[377986798,1754650244904,-150.0,0.0001889,2]
[377986799,1754650244913,-177.02734674,0.000189,2]
[377986800,1754650244927,-222.05021742,0.000189,2]
[377986801,1754650244937,-1039.06634649,0.000189,2]
[377986802,1754650244947,-577.63190117,0.000189,2]
[377986803,1754650244956,-3877.2721898,0.000189,2]
[377986804,1754650244967,-206.88692928,0.000189,3]
[377986805,1754650244977,-720.20805743,0.000189,2]
[377986806,1754650244988,-150.0,0.00018904,2]
[377986807,1754650244999,-150.0,0.00018906,2]
[377986808,1754650245008,-150.0,0.00018906,2]
[377986809,1754650245018,-200.0,0.0001891,2]
[377986810,1754650245027,-150.0,0.00018912,2]
[377986811,1754650245036,-150.0,0.00018913,2]
[377986812,1754650245046,-150.0,0.0001892,2]
[377986813,1754650245055,-150.0,0.00018926,2]
[377986814,1754650245064,-150.0,0.00018939,2]
[377986815,1754650245074,-150.0,0.00018945,2]
[377986816,1754650245083,-150.0,0.00018949,2]
[377986817,1754650245092,-150.0,0.00018956,2]
[377986818,1754650245102,-150.0,0.00018957,2]
[377986819,1754650245112,-305.04,0.00018959,2]
[377986820,1754650245125,-329.078,0.0001896,2]
[377986821,1754650245134,-150.0,0.00018968,2]
[377986822,1754650245143,-150.0,0.00018968,2]
[377986823,1754650245153,-500.0,0.00018973,2]
[377986824,1754650245167,-500.0,0.00018973,2]
[377986825,1754650245178,-500.0,0.00018973,2]
[377986826,1754650245187,-500.0,0.00018973,2]
[377986827,1754650245196,-500.0,0.00018973,2]
[377986828,1754650245205,-500.0,0.00018973,2]
[377986829,1754650245215,-578.87107955,0.00018973,2]
[377986830,1754650245224,-500.0,0.00018973,2]
[377986831,1754650245234,-160.72110901,0.00018986,2]
[377986832,1754650245243,-150.0,0.00018986,2]
[377986833,1754650245252,-150.0,0.00018986,2]
[377986834,1754650245261,-150.0,0.00018987,2]
[377986835,1754650245271,-582.78,0.0001899,2]
[377986836,1754650245280,-421.53,0.0001899,2]
[377986837,1754650245290,-460.55,0.0001899,2]
[377986838,1754650245299,-400.0,0.0001899,2]
[377986839,1754650245310,-400.0,0.0001899,2]
[377986840,1754650245319,-1398.46,0.0001899,2]
[377986841,1754650245329,-1516.91,0.0001899,2]
[377986842,1754650245340,-1959.67,0.0001899,2]
[377986843,1754650245350,-13538.28,0.0001899,2]
[377986844,1754650245360,-1206.53,0.0001899,2]
[377986845,1754650245369,-911.11,0.0001899,2]
[377986846,1754650245379,-400.0,0.0001899,2]
[377986847,1754650245389,-400.0,0.0001899,2]
[377986848,1754650245398,-400.0,0.0001899,2]
[377986849,1754650245408,-400.0,0.0001899,2]
[377986850,1754650245417,-1351.86,0.0001899,2]
[377986851,1754650245427,-426.51,0.0001899,2]
[377986852,1754650245436,-627.86,0.0001899,2]
[377986853,1754650245445,-1920.35,0.0001899,2]
[377986854,1754650245454,-400.0,0.00018991,2]
[377986855,1754650245463,-372.51044927,0.00018991,2]
[377986856,1754650245472,-400.0,0.00018991,2]
[377986857,1754650245482,-400.0,0.00018991,2]
[377986858,1754650245491,-400.0,0.00018991,2]
[377986859,1754650245500,-400.0,0.00018991,2]
[377986860,1754650245509,-400.0,0.00018991,2]
[377986861,1754650245519,-502.11387979,0.00018991,2]
[377986862,1754650245528,-400.0,0.00018991,2]
[377986863,1754650245537,-400.0,0.00018991,2]
[377986864,1754650245546,-400.0,0.00018991,2]
[377986865,1754650245555,-400.0,0.00018991,2]
[377986866,1754650245565,-400.0,0.00018991,2]
[377986867,1754650245574,-400.0,0.00018991,2]
[377986868,1754650245584,-400.0,0.00018991,2]
[377986869,1754650245593,-400.0,0.00018991,2]
[377986870,1754650245603,-400.0,0.00018991,2]
[377986871,1754650245612,-400.0,0.00018991,2]
[377986872,1754650245621,-400.0,0.00018991,2]
[377986873,1754650245631,-925.97,0.00018991,2]
[377986874,1754650245642,-400.0,0.00018991,2]
[377986875,1754650245651,-694.46,0.00018991,2]
[377986876,1754650245661,-181.51780823,0.00018991,2]
[377986877,1754650245670,-344.99159827,0.00018991,2]
[377986878,1754650245680,-498.55,0.00018991,2]
[377986879,1754650245689,-400.0,0.00018991,2]
[377986880,1754650245698,-400.0,0.00018991,2]
[377986881,1754650245708,-400.0,0.00018991,2]
[377986882,1754650245718,-400.0,0.00018991,2]
[377986883,1754650245727,-400.0,0.00018991,2]
[377986884,1754650245736,-432.71,0.00018991,2]
[377986885,1754650245745,-400.0,0.00018991,2]
[377986886,1754650245754,-549.63,0.00018991,2]
[377986887,1754650245763,-155.37451088,0.00018991,2]
[377986888,1754650245773,-400.0,0.00018991,2]
[377986889,1754650245783,-634.86,0.00018991,2]
[377986890,1754650245793,-400.0,0.00018991,2]
[377986891,1754650245803,-400.0,0.00018991,2]
[377986892,1754650245812,-400.0,0.00018991,2]
[377986893,1754650245822,-913.01,0.00018991,2]
[377986894,1754650245832,-400.0,0.00018991,2]
[377986895,1754650245842,-400.0,0.00018991,2]
[377986896,1754650245851,-847.03,0.00018991,2]
[377986897,1754650245861,-400.0,0.00018991,2]
[377986898,1754650245870,-604.03,0.00018991,2]
[377986899,1754650245880,-402.4,0.00018991,2]
[377986900,1754650245889,-400.0,0.00018991,2]
[377986901,1754650245899,-400.0,0.00018991,2]
[377986902,1754650245908,-400.0,0.00018991,2]
[377986903,1754650245918,-400.0,0.00018991,2]
[377986904,1754650245929,-645.44,0.00018991,2]
[377986905,1754650245939,-400.0,0.00018991,2]
[377986906,1754650245949,-400.0,0.00018991,2]
[377986907,1754650245958,-400.0,0.00018991,2]
[377986908,1754650245968,-422.3,0.00018991,2]
[377986909,1754650245977,-400.0,0.00018991,2]
[377986910,1754650245986,-400.0,0.00018991,2]
[377986911,1754650245995,-506.2,0.00018991,2]
[377986912,1754650246005,-400.0,0.00018991,2]
[377986913,1754650246014,-404.57,0.00018991,2]
[377986914,1754650246023,-400.0,0.00018991,2]
[377986915,1754650246033,-400.0,0.00018991,2]
[377986916,1754650246043,-400.0,0.00018991,2]
[377986917,1754650246053,-400.50224869,0.00018991,2]
[377986918,1754650246063,-400.0,0.00018991,2]
[377986919,1754650246074,-400.0,0.00018991,2]
[377986920,1754650246084,-400.0,0.00018991,2]
[377986921,1754650246094,-400.0,0.00018991,2]
[377986922,1754650246103,-481.92,0.00018991,2]
[377986923,1754650246113,-568.63,0.00018991,2]
[377986924,1754650246123,-410.1,0.00018991,2]
[377986925,1754650246132,-400.0,0.00018991,2]
[377986926,1754650246142,-400.0,0.00018991,2]
[377986927,1754650246151,-494.75,0.00018991,2]
[377986928,1754650246164,-400.0,0.00018991,2]
[377986929,1754650246174,-400.0,0.00018991,2]
[377986931,1754650246183,-400.0,0.00018991,2]
[377986933,1754650246192,-675.02,0.00018991,2]
[377986935,1754650246202,-6866.8,0.00018991,2]
[377986936,1754650246212,-1468.06,0.00018991,2]
[377986937,1754650246222,-1721.65,0.00018991,2]
[377986938,1754650246232,-1495.93,0.00018991,2]
[377986939,1754650246241,-1119.34,0.00018991,2]
[377986940,1754650246250,-1025.17,0.00018992,2]
[377986941,1754650246260,-2570.3,0.00018992,2]
[377986942,1754650246269,-374.37,0.00018992,2]
[377986943,1754650246279,-1180.46,0.00018992,2]
[377986944,1754650246288,-463.65,0.00018992,2]
[377986945,1754650246297,-1915.81,0.00018992,2]
[377986946,1754650246307,-1471.74,0.00018992,2]
[377986947,1754650246316,-400.0,0.00018992,2]
[377986948,1754650246325,-1208.9,0.00018992,2]
[377986949,1754650246335,-150.0,0.00018997,2]
[377986950,1754650246345,-500.0,0.00018997,2]
[377986951,1754650246354,-500.0,0.00018997,2]
[377986952,1754650246364,-4591.0083637,0.00018998,2]
[377986953,1754650246373,-150674.8893576,0.00018998,2]
[377986954,1754650246383,-55124.4276689,0.00018998,2]
[377986955,1754650246392,-152.79122496,0.00018998,2]
[377986956,1754650246402,-1000.0,0.00018999,2]
[377986957,1754650246411,-500.0,0.00018999,2]
[377986958,1754650246420,-500.0,0.00018999,2]
[377986959,1754650246430,-500.0,0.00018999,2]
[377986960,1754650246439,-500.0,0.00018999,2]
[377986961,1754650246450,-300.18968716,0.00019,2]
[377986962,1754650246460,-1098.85,0.00019,2]
[377986963,1754650246470,-1098.85,0.00019,2]
[377986964,1754650246479,-1098.85,0.00019,2]
[377986965,1754650246489,-38550.27503966,0.00019,2]
[377986966,1754650246499,-5000.0,0.00019,5]
[377986967,1754650246716,-2328039.40026735,0.00019,2]
[377986968,1754650246726,-1001.63,0.00019,2]
[377986969,1754650246735,-150.0,0.00019,2]
[377986970,1754650246745,-187.80847121,0.00019,2]
[377986971,1754650246755,-261.82183011,0.00019,2]
[377986972,1754650246764,-151.0,0.00019,2]
[377986973,1754650246773,-30192.48263272,0.00019,2]
[377986974,1754650246783,-460475.08677484,0.00019,2]
[377986975,1754650247393,-2282.45940082,0.00019,2]
[377986976,1754650247404,-1550.15298737,0.00019,2]
[377986977,1754650247415,-853.51883266,0.00019,2]
[377986978,1754650247430,-866.95215578,0.00019,2]
[377986979,1754650247441,-317.98127747,0.00019,2]
[377986980,1754650247457,-45045.4402317,0.00019,2]
[377986981,1754650247469,-10877.45617318,0.00019,2]
[377986982,1754650247480,-16494.92612646,0.00019,2]
[377986983,1754650247499,-597.47940624,0.00019,2]
[377986984,1754650247782,-531.62,0.00018766,2]
[377986985,1754650247792,-1465.04,0.00018766,2]
[377986986,1754650247804,-400.0,0.00018766,2]
[377986987,1754650247815,-1302.19,0.00018767,2]
[377986988,1754650247824,-832752.37704009,0.00019,2]
[377986989,1754650247835,-202990.67707724,0.00019,2]
[377986990,1754650248110,-500.0,0.00019,2]
[377986991,1754650248143,-898.29933228,0.00019,2]
[377986992,1754650248879,-3483.72861087,0.00019,2]
[377986993,1754650248891,-3060.13487,0.00019,2]
[377986994,1754650249391,-195033.02396889,0.00019,2]
[377986995,1754650249414,-460.54680861,0.00019,2]
[377986996,1754650249450,-362.4,0.00019,2]
[377986997,1754650249477,-50732.17260807,0.00019,2]
[377986998,1754650249498,-60395.81901584,0.00019,2]
[377986999,1754650328000,3635.18,0.00017918,2]
[377987000,1754650355226,2502.82,0.000179,2]
[377987011,1754650551089,2000.0,0.00030136,120]
[377987015,1754650552557,1690.1,0.00017766,2]
[377987016,1754650561240,2000.0,0.00030136,120]
[377987017,1754650618380,150.0,0.00017774,2]
[377987019,1754650627236,23900.0,0.00017771,2]
[377987024,1754650641273,305.31,0.00017769,2]
[377987025,1754650645405,1000.0,0.00017769,2]
[377987027,1754650725968,507.0,0.00017692,2]
[377987028,1754650727107,500.0,0.00017763,2]
[377987032,1754650729591,1564.74,0.00017763,2]
[377987033,1754650761660,618.15,0.00017763,2]
[377987035,1754650804003,279.0,0.0001801,2]
[377987036,1754650807418,1664.9,0.0001776,2]
[377987037,1754650808014,234.84,0.00013699,2]
[377987038,1754650889126,400.49,0.00015068,2]
[377987039,1754650889322,400.49,0.00016652,2]
[377987040,1754650890809,273.02,0.00017762,2]
[377987046,1754650953900,398.34,0.00017733,2]
[377987047,1754650980003,1079.53788509,0.00018,2]
[377987050,1754650983196,181.11,0.00017733,2]
[377987051,1754650983436,181.11,0.00017742,2]
[377987052,1754650983601,181.11,0.00017752,2]
[377987053,1754650983812,181.11,0.00017761,2]
[377987054,1754650984009,181.11,0.0001777,2]
[377987055,1754650985229,181.11,0.0001778,2]
[377987056,1754650985448,181.11,0.00017789,2]
[377987057,1754650985850,181.11,0.00017798,2]
[377987058,1754650986070,181.11,0.00017808,2]
[377987059,1754650986333,181.11,0.00017817,2]
[377987060,1754650986587,181.11,0.00017826,2]
[377987061,1754650986819,181.11,0.00017836,2]
[377987062,1754650986994,181.11,0.00017845,2]
[377987063,1754650987167,181.11,0.00017854,2]
[377987064,1754650987357,181.11,0.00017864,2]
[377987065,1754650987588,181.11,0.00017873,2]
[377987066,1754650987805,181.11,0.00017882,2]
[377987067,1754650988200,181.11,0.00017892,2]
[377987068,1754650988424,181.11,0.00017901,2]
[377987069,1754650988631,181.11,0.0001791,2]
[377987070,1754650990725,1079.41,0.00018,2]
[377987071,1754651000548,290.6730808,0.00018,2]
[377987072,1754651000580,788.7369192,0.00018,2]
[377987073,1754651010605,1079.41,0.00018,2]
[377987074,1754651023041,150.0,0.00017738,2]
[377987075,1754651024437,1079.41,0.00018,2]
[377987076,1754651079242,1079.41,0.00018,2]
[377987077,1754651103835,186.0,0.00018009,2]
[377987105,1754651404140,187.0,0.00018009,2]
[377987110,1754651432119,-400.49,0.00018236,2]
[377987111,1754651432128,-124.00003042,0.00018245,2]
[377987112,1754651432140,-175.99996958,0.00018245,2]
[377987113,1754651432150,-300.0,0.00018254,2]
[377987114,1754651432160,-300.0,0.00018301,2]
[377987115,1754651432170,-188.33,0.00018307,2]
[377987116,1754651432179,-305.31,0.00018435,2]
[377987117,1754651432188,-267.46074303,0.00018535,2]
[377987118,1754651432198,-1200.0,0.00018544,2]
[377987119,1754651432207,-1179.79002576,0.00018544,2]
[377987121,1754651432219,-20.20997424,0.00018544,2]
[377987123,1754651432229,-300.0,0.00018545,2]
[377987125,1754651432240,-265.62802546,0.00018545,2]
[377987127,1754651432251,-34.37197454,0.00018545,2]
[377987128,1754651432261,-10159.74277095,0.00018546,2]
[377987129,1754651432272,-273.02,0.0001865,2]
[377987130,1754651432283,-600.0,0.00018656,2]
[377987131,1754651432292,-160.0,0.00018656,2]
[377987132,1754651432301,-192.76297195,0.00018656,2]
[377987133,1754651432311,-151.0,0.00018656,2]
[377987134,1754651432320,-2500.0,0.00018662,2]
[377987135,1754651432330,-5000.0,0.00018665,2]
[377987136,1754651432339,-20280.67221233,0.00018667,2]
[377987137,1754651432360,-73229.77127962,0.00018667,2]
[377987138,1754651432383,-2000.0,0.00018667,2]
[377987139,1754651432396,-4364.33639331,0.00018667,2]
[377987140,1754651432441,-1166.165,0.00018667,2]
[377987141,1754651432453,-2324.17178356,0.00018667,2]
[377987142,1754651432501,-602.44900146,0.00018667,2]
[377987143,1754651432512,-69041.08412972,0.00018667,2]
[377987144,1754651432522,-1000.0,0.00018667,2]
[377987145,1754651432531,-150.0,0.00018732,2]
[377987146,1754651432540,-150.0,0.00018734,2]
[377987147,1754651432550,-150.0,0.00018735,2]
[377987148,1754651432559,-150.0,0.0001874,2]
[377987149,1754651432568,-150.0,0.00018749,2]
[377987150,1754651432578,-150.0,0.00018749,2]
[377987151,1754651432587,-150.0,0.00018753,2]
[377987152,1754651432597,-150.0,0.00018753,2]
[377987153,1754651432606,-219.06,0.00018753,2]
[377987154,1754651432616,-150.0,0.00018758,2]
[377987155,1754651432627,-150.0,0.00018758,2]
[377987156,1754651432636,-150.0,0.00018759,2]
[377987157,1754651432646,-150.0,0.00018759,2]
[377987158,1754651432655,-1085.27,0.00018762,2]
[377987160,1754651432665,-1201.74,0.00018762,2]
[377987161,1754651432674,-1020.15,0.00018762,2]
[377987162,1754651432684,-1170.38,0.00018762,2]
[377987164,1754651432693,-1351.52,0.00018762,2]
[377987165,1754651432702,-1342.28,0.00018762,2]
[377987166,1754651432711,-451.58,0.00018762,2]
[377987167,1754651432721,-993.22,0.00018762,2]
[377987168,1754651432731,-400.0,0.00018762,2]
[377987169,1754651432740,-1504.26,0.00018762,2]
[377987170,1754651432750,-673.84,0.00018762,2]
[377987171,1754651432760,-1218.31,0.00018762,2]
[377987172,1754651432769,-998.45,0.00018762,2]
[377987173,1754651432779,-2204.29,0.00018762,2]
[377987174,1754651432788,-638.73,0.00018762,2]
[377987175,1754651432797,-400.0,0.00018762,2]
[377987176,1754651432806,-1322.64,0.00018762,2]
[377987177,1754651432816,-652.18,0.00018762,2]
[377987178,1754651432826,-571.74,0.00018762,2]
[377987179,1754651432835,-892.48,0.00018762,2]
[377987180,1754651432844,-21284.75404191,0.00018762,2]
[377987181,1754651432853,-150.0,0.00018763,2]
[377987182,1754651432863,-150.0,0.00018763,2]
[377987183,1754651432872,-150.0,0.00018763,2]
[377987184,1754651432881,-1401.63,0.00018763,2]
[377987185,1754651432891,-402.23,0.00018763,2]
[377987186,1754651432900,-400.0,0.00018763,2]
[377987187,1754651432910,-351.444133,0.00018763,2]
[377987188,1754651432919,-1451.03,0.00018763,2]
[377987189,1754651432928,-403.06568105,0.00018763,2]
[377987190,1754651432937,-429.086783,0.00018763,2]
[377987191,1754651432946,-1454.42,0.00018763,2]
[377987192,1754651432955,-497.37,0.00018763,2]
[377987193,1754651432965,-327.647211,0.00018763,2]
[377987194,1754651432974,-581.04,0.00018763,2]
[377987195,1754651432983,-400.0,0.00018763,2]
[377987196,1754651432993,-1025.46,0.00018763,2]
[377987197,1754651433002,-5097.54,0.00018763,2]
[377987198,1754651433012,-400.0,0.00018763,2]
[377987199,1754651433021,-669.2,0.00018763,2]
[377987200,1754651433031,-705.36,0.00018763,2]
[377987201,1754651433040,-856.38,0.00018763,2]
[377987202,1754651433049,-850.69,0.00018763,2]
[377987203,1754651433057,-827.46,0.00018763,2]
[377987204,1754651433066,-419.98,0.00018763,2]
[377987205,1754651433074,-2193.81,0.00018763,2]
[377987206,1754651433082,-1213.03,0.00018763,2]
[377987207,1754651433091,-1265.2,0.00018763,2]
[377987208,1754651433100,-400.0,0.00018763,2]
[377987209,1754651433110,-696.84,0.00018763,2]
[377987210,1754651433120,-400.0,0.00018763,2]
[377987211,1754651433129,-257.01873926,0.00018763,2]
[377987212,1754651433139,-400.0,0.00018764,2]
[377987213,1754651433149,-460.27511568,0.00018764,2]
[377987214,1754651433159,-400.0,0.00018764,2]
[377987215,1754651433168,-400.0,0.00018764,2]
[377987216,1754651433179,-252.01753202,0.00018764,2]
[377987217,1754651433189,-400.0,0.00018764,2]
[377987218,1754651433199,-400.0,0.00018764,2]
[377987219,1754651433210,-400.0,0.00018764,2]
[377987220,1754651433220,-572.65,0.00018764,2]
[377987221,1754651433232,-400.0,0.00018764,2]
[377987222,1754651433243,-400.0,0.00018764,2]
[377987223,1754651433252,-400.0,0.00018764,2]
[377987224,1754651433263,-543.48,0.00018764,2]
[377987225,1754651433275,-514.82,0.00018764,2]
[377987226,1754651433285,-400.0,0.00018764,2]
[377987227,1754651433295,-407.48,0.00018764,2]
[377987228,1754651433305,-400.0,0.00018764,2]
[377987229,1754651433315,-363.69873854,0.00018764,2]
[377987230,1754651433325,-852.7,0.00018764,2]
[377987231,1754651433335,-295.09431352,0.00018764,2]
[377987232,1754651433345,-303.35731044,0.00018764,2]
[377987233,1754651433358,-471.58,0.00018764,2]
[377987234,1754651433367,-150.0,0.00018764,2]
[377987235,1754651433377,-400.0,0.00018764,2]
[377987236,1754651433387,-591.34,0.00018764,2]
[377987237,1754651433397,-799.25,0.00018764,2]
[377987238,1754651433406,-665.78,0.00018764,2]
[377987239,1754651433416,-400.0,0.00018764,2]
[377987240,1754651433425,-446.97,0.00018764,2]
[377987241,1754651433434,-712.62,0.00018764,2]
[377987242,1754651433443,-400.0,0.00018764,2]
[377987243,1754651433454,-400.0,0.00018764,2]
[377987244,1754651433464,-755.04,0.00018764,2]
[377987245,1754651433473,-400.0,0.00018764,2]
[377987246,1754651433483,-615.57,0.00018764,2]
[377987247,1754651433493,-502.39,0.00018764,2]
[377987248,1754651433503,-394.15492571,0.00018764,2]
[377987249,1754651433512,-564.35,0.00018764,2]
[377987250,1754651433522,-883.31,0.00018764,2]
[377987251,1754651433531,-400.0,0.00018764,2]
[377987252,1754651433541,-400.0,0.00018764,2]
[377987253,1754651433550,-492.35,0.00018764,2]
[377987254,1754651433560,-522.08,0.00018764,2]
[377987255,1754651433569,-400.0,0.00018764,2]
[377987256,1754651433580,-400.0,0.00018764,2]
[377987257,1754651433590,-1144.07,0.00018764,2]
[377987258,1754651433600,-400.0,0.00018764,2]
[377987259,1754651433610,-400.0,0.00018764,2]
[377987260,1754651433620,-400.0,0.00018764,2]
[377987261,1754651433629,-664.5,0.00018764,2]
[377987262,1754651433639,-400.0,0.00018764,2]
[377987263,1754651433650,-400.0,0.00018764,2]
[377987264,1754651433660,-400.0,0.00018764,2]
[377987265,1754651433670,-400.0,0.00018764,2]
[377987266,1754651433680,-513.95,0.00018764,2]
[377987267,1754651433690,-586.11,0.00018764,2]
[377987268,1754651433699,-521.39,0.00018764,2]
[377987269,1754651433709,-400.0,0.00018764,2]
[377987270,1754651433719,-1064.13,0.00018764,2]
[377987271,1754651433728,-837.04,0.00018764,2]
[377987272,1754651433738,-1000.0,0.00018764,2]
[377987273,1754651433747,-400.23,0.00018764,2]
[377987274,1754651433757,-829.78,0.00018764,2]
[377987275,1754651433767,-400.0,0.00018764,2]
[377987276,1754651433776,-400.0,0.00018764,2]
[377987277,1754651433785,-484.16213044,0.00018764,2]
[377987278,1754651433794,-400.0,0.00018764,2]
[377987279,1754651433804,-621.82,0.00018764,2]
[377987280,1754651433813,-1161.3,0.00018764,2]
[377987281,1754651433823,-400.0,0.00018764,2]
[377987282,1754651433833,-400.0,0.00018764,2]
[377987283,1754651433842,-539.17,0.00018764,2]
[377987284,1754651433852,-400.0,0.00018764,2]
[377987285,1754651433861,-400.0,0.00018764,2]
[377987286,1754651433872,-1084.62,0.00018764,2]
[377987287,1754651433881,-400.0,0.00018764,2]
[377987288,1754651433891,-400.0,0.00018764,2]
[377987289,1754651433902,-400.0,0.00018764,2]
[377987290,1754651433912,-400.0,0.00018764,2]
[377987291,1754651433922,-1879.41,0.00018764,2]
[377987292,1754651433932,-711.16,0.00018764,2]
[377987293,1754651433941,-400.0,0.00018764,2]
[377987294,1754651433950,-400.0,0.00018764,2]
[377987295,1754651433960,-461.81,0.00018764,2]
[377987296,1754651433969,-434.24,0.00018764,2]
[377987297,1754651433979,-910.35,0.00018764,2]
[377987298,1754651433989,-414.61996501,0.00018764,2]
[377987299,1754651433998,-400.0,0.00018764,2]
[377987300,1754651434007,-400.0,0.00018764,2]
[377987301,1754651434017,-672.99,0.00018764,2]
[377987302,1754651434027,-706.14,0.00018764,2]
[377987303,1754651434036,-400.0,0.00018764,2]
[377987304,1754651434045,-504.59,0.00018764,2]
[377987305,1754651434055,-976.82,0.00018764,2]
[377987306,1754651434064,-678.47,0.00018764,2]
[377987307,1754651434073,-919.01,0.00018764,2]
[377987308,1754651434083,-400.0,0.00018764,2]
[377987309,1754651434092,-619.47,0.00018764,2]
[377987310,1754651434101,-1436.0,0.00018764,2]
[377987311,1754651434110,-400.0,0.00018764,2]
[377987312,1754651434120,-400.0,0.00018764,2]
[377987313,1754651434130,-400.0,0.00018764,2]
[377987314,1754651434140,-400.0,0.00018764,2]
[377987315,1754651434149,-587.92,0.00018764,2]
[377987316,1754651434159,-424.82,0.00018764,2]
[377987317,1754651434169,-1279.45,0.00018764,2]
[377987318,1754651434178,-400.0,0.00018764,2]
[377987319,1754651434187,-700.65,0.00018764,2]
[377987320,1754651434197,-742.39,0.00018764,2]
[377987321,1754651434208,-400.0,0.00018764,2]
[377987322,1754651434217,-542.75,0.00018764,2]
[377987323,1754651434228,-400.02,0.00018764,2]
[377987324,1754651434237,-1340.2,0.00018764,2]
[377987325,1754651434247,-400.0,0.00018764,2]
[377987326,1754651434257,-1453.7,0.00018764,2]
[377987327,1754651434267,-918.22,0.00018764,2]
[377987328,1754651434282,-1878.02,0.00018764,2]
[377987329,1754651434293,-400.0,0.00018764,2]
[377987330,1754651434302,-12974.18,0.00018764,2]
[377987331,1754651434312,-400.0,0.00018764,2]
[377987332,1754651434322,-714.31,0.00018764,2]
[377987333,1754651434333,-1156.26,0.00018764,2]
[377987334,1754651434342,-457.64618948,0.00018765,2]
[377987335,1754651434352,-211.62674257,0.00018765,2]
[377987336,1754651434363,-472.15,0.00018765,2]
[377987337,1754651434373,-636.55,0.00018765,2]
[377987338,1754651434382,-400.0,0.00018765,2]
[377987339,1754651434391,-415.87,0.00018765,2]
[377987340,1754651434401,-666.47,0.00018765,2]
[377987341,1754651434410,-400.0,0.00018765,2]